[Event "Late-Titled-Tuesday-Blitz-November-28-2023"]
[Site "Chess.com"]
[Date "2023.11.28"]
[Round "4"]
[White "NCchamp"]
[Black "JuniorJumper"]
[Result "1-0"]
[WhiteElo "2360"]
[BlackElo "2532"]
[TimeControl "180+1"]
[EndTime "14:38:19 PST"]
[Termination "NCchamp won on time"]

1. e4 {[%clk 0:03:00]} 1... c5 {[%clk 0:02:21.9]} 2. Nc3 {[%clk 0:02:58.7]} 2...
e6 {[%clk 0:02:20.3]} 3. d4 {[%clk 0:02:58.1]} 3... cxd4 {[%clk 0:02:20.3]} 4.
Qxd4 {[%clk 0:02:59]} 4... Nc6 {[%clk 0:02:20.2]} 5. Qd3 {[%clk 0:02:59]} 5...
Nf6 {[%clk 0:02:19.2]} 6. Bf4 {[%clk 0:02:56.6]} 6... Bb4 {[%clk 0:02:05]} 7.
Ne2 {[%clk 0:02:51.6]} 7... d5 {[%clk 0:01:44.2]} 8. O-O-O {[%clk 0:02:36.6]}
8... O-O {[%clk 0:01:03.9]} 9. exd5 {[%clk 0:02:29.7]} 9... exd5 {[%clk
0:01:04.8]} 10. Nxd5 {[%clk 0:02:29.3]} 10... Nxd5 {[%clk 0:01:05.7]} 11. Qxd5
{[%clk 0:02:29.3]} 11... Qxd5 {[%clk 0:00:58.9]} 12. Rxd5 {[%clk 0:02:28.5]}
12... Be6 {[%clk 0:00:59.8]} 13. Rd1 {[%clk 0:02:27.7]} 13... Rfd8 {[%clk
0:01:00]} 14. a3 {[%clk 0:02:12.3]} 14... Rxd1+ {[%clk 0:00:56.1]} 15. Kxd1
{[%clk 0:02:13.2]} 15... Rd8+ {[%clk 0:00:56.4]} 16. Kc1 {[%clk 0:02:13.1]}
16... Ba5 {[%clk 0:00:48.6]} 17. Ng3 {[%clk 0:02:03]} 17... Nd4 {[%clk
0:00:33.6]} 18. Bd3 {[%clk 0:01:50.9]} 18... Nb3+ {[%clk 0:00:33.4]} 19. Kb1
{[%clk 0:01:48.4]} 19... Nc5 {[%clk 0:00:32.9]} 20. Be2 {[%clk 0:01:40.6]} 20...
Bb6 {[%clk 0:00:25.7]} 21. Rd1 {[%clk 0:01:36.8]} 21... Rc8 {[%clk 0:00:22.5]}
22. Be3 {[%clk 0:01:26.1]} 22... f6 {[%clk 0:00:15.9]} 23. Bf3 {[%clk
0:01:22.2]} 23... Rc7 {[%clk 0:00:03.4]} 24. Bd5 {[%clk 0:01:21.6]} 24... Kf7
{[%clk 0:00:02]} 25. Nf5 {[%clk 0:01:14.2]} 25... g6 {[%clk 0:00:01.6]} 26.
Bxe6+ {[%clk 0:01:09.8]} 26... Kxe6 {[%clk 0:00:02.5]} 27. Nd4+ {[%clk
0:01:09.8]} 27... Kf7 {[%clk 0:00:02.7]} 28. Nb5 {[%clk 0:01:09.7]} 28... Rd7
{[%clk 0:00:02]} 29. Rxd7+ {[%clk 0:01:07.7]} 29... Nxd7 {[%clk 0:00:02.9]} 30.
Bxb6 {[%clk 0:01:06.6]} 30... axb6 {[%clk 0:00:03.6]} 31. Nd6+ {[%clk
0:01:07.5]} 31... Ke6 {[%clk 0:00:03.6]} 32. Nc4 {[%clk 0:00:41.6]} 32... b5
{[%clk 0:00:03.5]} 33. Ne3 {[%clk 0:00:41.7]} 33... Ne5 {[%clk 0:00:04.1]} 34.
h3 {[%clk 0:00:39.2]} 34... f5 {[%clk 0:00:04.5]} 35. Kc1 {[%clk 0:00:37.2]}
35... f4 {[%clk 0:00:04.9]} 36. Ng4 {[%clk 0:00:36.8]} 36... Nc4 {[%clk
0:00:03.9]} 37. g3 {[%clk 0:00:30.7]} 37... h5 {[%clk 0:00:03.6]} 38. Nh2 {[%clk
0:00:29.5]} 38... fxg3 {[%clk 0:00:04.2]} 39. fxg3 {[%clk 0:00:30.4]} 39... Kf5
{[%clk 0:00:02.6]} 40. g4+ {[%clk 0:00:16.4]} 40... Kf4 {[%clk 0:00:01.9]} 41.
gxh5 {[%clk 0:00:10.6]} 41... gxh5 {[%clk 0:00:02.8]} 42. Nf1 {[%clk 0:00:11.4]}
42... h4 {[%clk 0:00:02.4]} 43. b3 {[%clk 0:00:09.5]} 43... Nxa3 {[%clk
0:00:02.3]} 44. Kb2 {[%clk 0:00:08.5]} 44... b4 {[%clk 0:00:02.6]} 45. c3 {[%clk
0:00:08.2]} 45... Nb5 {[%clk 0:00:01.3]} 46. cxb4 {[%clk 0:00:07.3]} 46... b6
{[%clk 0:00:01.8]} 47. Kc2 {[%clk 0:00:07.3]} 47... Nd4+ {[%clk 0:00:02.4]} 48.
Kc3 {[%clk 0:00:07.4]} 48... Ne2+ {[%clk 0:00:02.6]} 49. Kc4 {[%clk 0:00:07.4]}
49... Ng3 {[%clk 0:00:03.2]} 50. Nh2 {[%clk 0:00:07.2]} 50... Ne4 {[%clk
0:00:02.6]} 51. Kb5 {[%clk 0:00:07.3]} 51... Kg3 {[%clk 0:00:03.2]} 52. Nf1+
{[%clk 0:00:07.4]} 52... Kxh3 {[%clk 0:00:03.7]} 53. Ne3 {[%clk 0:00:07.6]}
53... Nd6+ {[%clk 0:00:02]} 54. Kc6 {[%clk 0:00:07.4]} 54... Ne4 {[%clk
0:00:01.3]} 55. Nf5 {[%clk 0:00:06.8]} 1-0

[Event "Late-Titled-Tuesday-Blitz-November-28-2023"]
[Site "Chess.com"]
[Date "2023.11.28"]
[Round "4"]
[White "wanyaland"]
[Black "sakkikuska"]
[Result "1/2-1/2"]
[WhiteElo "2444"]
[BlackElo "2398"]
[TimeControl "180+1"]
[EndTime "14:38:27 PST"]
[Termination "Game drawn by stalemate"]

1. d4 {[%clk 0:02:52.8]} 1... Nf6 {[%clk 0:02:57.9]} 2. c4 {[%clk 0:02:52]} 2...
g6 {[%clk 0:02:57.5]} 3. Nc3 {[%clk 0:02:51.2]} 3... d5 {[%clk 0:02:57.6]} 4.
Bf4 {[%clk 0:02:49.4]} 4... Bg7 {[%clk 0:02:53.4]} 5. e3 {[%clk 0:02:45.4]} 5...
c5 {[%clk 0:02:52.2]} 6. dxc5 {[%clk 0:02:44.7]} 6... Qa5 {[%clk 0:02:51.4]} 7.
Qa4+ {[%clk 0:02:42.9]} 7... Qxa4 {[%clk 0:02:45]} 8. Nxa4 {[%clk 0:02:43.2]}
8... dxc4 {[%clk 0:02:06.9]} 9. Bxc4 {[%clk 0:02:40]} 9... Ne4 {[%clk
0:02:06.9]} 10. Bb5+ {[%clk 0:02:28]} 10... Bd7 {[%clk 0:02:03.7]} 11. Bxd7+
{[%clk 0:02:11.8]} 11... Nxd7 {[%clk 0:02:02.4]} 12. Rc1 {[%clk 0:02:11.9]}
12... Rc8 {[%clk 0:01:53.9]} 13. b4 {[%clk 0:02:11.7]} 13... a5 {[%clk
0:01:47.2]} 14. f3 {[%clk 0:01:57]} 14... Nef6 {[%clk 0:01:46.2]} 15. bxa5
{[%clk 0:01:55.4]} 15... Nd5 {[%clk 0:01:46.2]} 16. Ne2 {[%clk 0:01:45.6]} 16...
e5 {[%clk 0:01:35.5]} 17. Bg3 {[%clk 0:01:44.4]} 17... Nxe3 {[%clk 0:01:34.5]}
18. Kf2 {[%clk 0:01:44.1]} 18... Nf5 {[%clk 0:01:29]} 19. Rhd1 {[%clk
0:01:42.5]} 19... Nxg3 {[%clk 0:01:15.1]} 20. Nxg3 {[%clk 0:01:35.8]} 20... f5
{[%clk 0:01:08.2]} 21. a6 {[%clk 0:00:57.8]} 21... bxa6 {[%clk 0:01:02.8]} 22.
c6 {[%clk 0:00:57.6]} 22... Nf6 {[%clk 0:01:00.2]} 23. c7 {[%clk 0:00:49]} 23...
Nd7 {[%clk 0:00:45.7]} 24. Rc6 {[%clk 0:00:40.9]} 24... Ke7 {[%clk 0:00:41]} 25.
Rb1 {[%clk 0:00:30.9]} 25... e4 {[%clk 0:00:27.6]} 26. fxe4 {[%clk 0:00:28.5]}
26... Ne5 {[%clk 0:00:27.2]} 27. Rc2 {[%clk 0:00:21.6]} 27... f4 {[%clk
0:00:24.5]} 28. Ne2 {[%clk 0:00:18.9]} 28... Nd3+ {[%clk 0:00:24.8]} 29. Kf1
{[%clk 0:00:14.9]} 29... Be5 {[%clk 0:00:25.3]} 30. Nec3 {[%clk 0:00:13.7]}
30... a5 {[%clk 0:00:12.1]} 31. Nd5+ {[%clk 0:00:13.2]} 31... Ke6 {[%clk
0:00:12.6]} 32. Rb6+ {[%clk 0:00:11.6]} 32... Kd7 {[%clk 0:00:11.4]} 33. Ke2
{[%clk 0:00:10.8]} 33... Nb4 {[%clk 0:00:11]} 34. Nxb4 {[%clk 0:00:10]} 34...
axb4 {[%clk 0:00:11.9]} 35. Rb5 {[%clk 0:00:08]} 35... Rxc7 {[%clk 0:00:12]} 36.
Rd2+ {[%clk 0:00:07.8]} 36... Ke6 {[%clk 0:00:12.1]} 37. Nc5+ {[%clk 0:00:07.8]}
37... Ke7 {[%clk 0:00:09.6]} 38. Nd3 {[%clk 0:00:07.7]} 38... Bc3 {[%clk
0:00:09.3]} 39. Rc2 {[%clk 0:00:07.2]} 39... Rd8 {[%clk 0:00:09.2]} 40. Nxf4
{[%clk 0:00:07.5]} 40... Rcd7 {[%clk 0:00:09.2]} 41. Nd5+ {[%clk 0:00:08.4]}
41... Kf7 {[%clk 0:00:09]} 42. Nxc3 {[%clk 0:00:08.9]} 42... bxc3 {[%clk
0:00:09.7]} 43. Rxc3 {[%clk 0:00:09.5]} 43... Rd2+ {[%clk 0:00:10.1]} 44. Kf3
{[%clk 0:00:10.4]} 44... Rxa2 {[%clk 0:00:10.5]} 45. Rb7+ {[%clk 0:00:10.1]}
45... Kg8 {[%clk 0:00:07.7]} 46. Re3 {[%clk 0:00:10]} 46... Rdd2 {[%clk
0:00:07.9]} 47. e5 {[%clk 0:00:10.2]} 47... Rf2+ {[%clk 0:00:07.8]} 48. Ke4
{[%clk 0:00:10.7]} 48... Rxg2 {[%clk 0:00:06.4]} 49. e6 {[%clk 0:00:10.6]} 49...
Rge2 {[%clk 0:00:07]} 50. Rb8+ {[%clk 0:00:09.8]} 50... Kg7 {[%clk 0:00:06.8]}
51. e7 {[%clk 0:00:10.7]} 51... Ra4+ {[%clk 0:00:05.1]} 52. Kf3 {[%clk
0:00:10.8]} 52... Rxe3+ {[%clk 0:00:03.8]} 53. Kxe3 {[%clk 0:00:11.7]} 53...
Ra3+ {[%clk 0:00:04.7]} 54. Ke4 {[%clk 0:00:11.3]} 54... Ra4+ {[%clk 0:00:04.5]}
55. Kd5 {[%clk 0:00:11.7]} 55... Ra5+ {[%clk 0:00:05.1]} 56. Kd6 {[%clk
0:00:12.1]} 56... Ra6+ {[%clk 0:00:05.5]} 57. Kd7 {[%clk 0:00:12.6]} 57... Ra7+
{[%clk 0:00:06.2]} 58. Kd8 {[%clk 0:00:12.9]} 58... Rxe7 {[%clk 0:00:04.2]} 59.
Kxe7 {[%clk 0:00:12.7]} 59... g5 {[%clk 0:00:05.1]} 60. Rb6 {[%clk 0:00:13.3]}
60... h6 {[%clk 0:00:04.9]} 61. Ke6 {[%clk 0:00:14.2]} 61... Kg6 {[%clk
0:00:05.3]} 62. Ke5+ {[%clk 0:00:14.7]} 62... Kh5 {[%clk 0:00:05.8]} 63. Ke4
{[%clk 0:00:15.6]} 63... Kg4 {[%clk 0:00:04.4]} 64. Rxh6 {[%clk 0:00:14.6]}
1/2-1/2

[Event "Late-Titled-Tuesday-Blitz-November-28-2023"]
[Site "Chess.com"]
[Date "2023.11.28"]
[Round "4"]
[White "Zampronha1971"]
[Black "HalfIsCrayfish"]
[Result "1/2-1/2"]
[WhiteElo "2388"]
[BlackElo "2598"]
[TimeControl "180+1"]
[EndTime "14:38:29 PST"]
[Termination "Game drawn by repetition"]

1. e4 {[%clk 0:03:00.9]} 1... c6 {[%clk 0:02:57.8]} 2. d4 {[%clk 0:03:00.4]}
2... d5 {[%clk 0:02:56.4]} 3. e5 {[%clk 0:03:01]} 3... c5 {[%clk 0:02:53.5]} 4.
Nf3 {[%clk 0:03:01.6]} 4... cxd4 {[%clk 0:02:52.3]} 5. Nxd4 {[%clk 0:03:00.9]}
5... e6 {[%clk 0:02:51.1]} 6. c4 {[%clk 0:03:00.9]} 6... Bb4+ {[%clk 0:02:49.9]}
7. Nc3 {[%clk 0:03:00.4]} 7... Ne7 {[%clk 0:02:41.1]} 8. Be2 {[%clk 0:02:54.6]}
8... O-O {[%clk 0:02:30.1]} 9. O-O {[%clk 0:02:53.7]} 9... Nbc6 {[%clk
0:02:27.7]} 10. cxd5 {[%clk 0:02:52.6]} 10... exd5 {[%clk 0:02:23.8]} 11. Nf3
{[%clk 0:02:46.2]} 11... Be6 {[%clk 0:02:18.2]} 12. Bf4 {[%clk 0:02:42.5]} 12...
Ng6 {[%clk 0:02:13.1]} 13. Bg3 {[%clk 0:02:42.4]} 13... Bxc3 {[%clk 0:02:11.4]}
14. bxc3 {[%clk 0:02:42]} 14... Re8 {[%clk 0:02:11.8]} 15. Rb1 {[%clk
0:02:36.6]} 15... Qd7 {[%clk 0:02:03.6]} 16. Bb5 {[%clk 0:02:35]} 16... Bg4
{[%clk 0:02:01.3]} 17. h3 {[%clk 0:02:30.7]} 17... Bxf3 {[%clk 0:01:50.3]} 18.
Qxf3 {[%clk 0:02:31.6]} 18... Ngxe5 {[%clk 0:01:49.8]} 19. Bxe5 {[%clk 0:02:30]}
19... Rxe5 {[%clk 0:01:49.8]} 20. c4 {[%clk 0:02:23.5]} 20... a6 {[%clk
0:01:38.1]} 21. cxd5 {[%clk 0:02:20.4]} 21... axb5 {[%clk 0:01:35]} 22. dxc6
{[%clk 0:02:20.4]} 22... bxc6 {[%clk 0:01:35]} 23. Rfd1 {[%clk 0:02:18]} 23...
Qe6 {[%clk 0:01:33.2]} 24. Rdc1 {[%clk 0:02:08.6]} 24... h6 {[%clk 0:01:11]} 25.
Rxc6 {[%clk 0:02:00.3]} 25... Re1+ {[%clk 0:01:10.2]} 26. Rxe1 {[%clk
0:01:59.3]} 26... Qxe1+ {[%clk 0:01:10.8]} 27. Kh2 {[%clk 0:01:59.8]} 27... Qe5+
{[%clk 0:01:11.1]} 28. g3 {[%clk 0:01:59.9]} 28... Rd8 {[%clk 0:00:33]} 29. Rc2
{[%clk 0:01:47.1]} 29... g6 {[%clk 0:00:27.1]} 30. Re2 {[%clk 0:01:46.7]} 30...
Qd6 {[%clk 0:00:25.6]} 31. Rb2 {[%clk 0:01:41.3]} 31... Qe5 {[%clk 0:00:23.8]}
32. Qe2 {[%clk 0:01:32.2]} 32... Qxe2 {[%clk 0:00:11.9]} 33. Rxe2 {[%clk
0:01:33.1]} 33... Kg7 {[%clk 0:00:09.6]} 34. Kg2 {[%clk 0:01:33.6]} 34... Kf6
{[%clk 0:00:09.9]} 35. Kf3 {[%clk 0:01:27.6]} 35... Rd3+ {[%clk 0:00:09.8]} 36.
Ke4 {[%clk 0:01:26.2]} 36... Ra3 {[%clk 0:00:09.5]} 37. Kd4 {[%clk 0:01:23.3]}
37... b4 {[%clk 0:00:03.3]} 38. Kc4 {[%clk 0:01:22.9]} 38... Ra8 {[%clk
0:00:01.9]} 39. Kxb4 {[%clk 0:01:21.3]} 39... Rb8+ {[%clk 0:00:02.2]} 40. Kc3
{[%clk 0:01:20.4]} 40... Rc8+ {[%clk 0:00:02.5]} 41. Kb2 {[%clk 0:01:20.5]}
41... Rb8+ {[%clk 0:00:02]} 42. Ka1 {[%clk 0:01:20.8]} 42... Ra8 {[%clk
0:00:02.7]} 43. Re3 {[%clk 0:01:16.4]} 43... Kf5 {[%clk 0:00:03.3]} 44. Rf3+
{[%clk 0:01:15.9]} 44... Ke6 {[%clk 0:00:03.4]} 45. a3 {[%clk 0:01:15.5]} 45...
f5 {[%clk 0:00:03.2]} 46. Kb2 {[%clk 0:01:14.7]} 46... Kd5 {[%clk 0:00:03.7]}
47. Rc3 {[%clk 0:01:12.1]} 47... Kd4 {[%clk 0:00:03.6]} 48. Rc6 {[%clk
0:01:09.2]} 48... Rb8+ {[%clk 0:00:03.8]} 49. Kc2 {[%clk 0:01:07.6]} 49... Ra8
{[%clk 0:00:03.6]} 50. Rxg6 {[%clk 0:01:05.1]} 50... Rxa3 {[%clk 0:00:03.9]} 51.
Kd2 {[%clk 0:00:58.8]} 51... Ra2+ {[%clk 0:00:04]} 52. Ke1 {[%clk 0:00:59.5]}
52... Ke4 {[%clk 0:00:03.5]} 53. Re6+ {[%clk 0:00:52.1]} 53... Kf3 {[%clk
0:00:03.6]} 54. Re3+ {[%clk 0:00:52.1]} 54... Kg2 {[%clk 0:00:04.3]} 55. Re6
{[%clk 0:00:44.9]} 55... Rxf2 {[%clk 0:00:02.8]} 56. Rxh6 {[%clk 0:00:42.8]}
56... Rf1+ {[%clk 0:00:02.6]} 57. Ke2 {[%clk 0:00:42.4]} 57... Rf3 {[%clk
0:00:03.3]} 58. g4 {[%clk 0:00:41]} 58... f4 {[%clk 0:00:03.3]} 59. g5 {[%clk
0:00:39]} 59... Re3+ {[%clk 0:00:03.5]} 60. Kd2 {[%clk 0:00:38.7]} 60... Re8
{[%clk 0:00:04]} 61. Rf6 {[%clk 0:00:34.3]} 61... f3 {[%clk 0:00:03.8]} 62. h4
{[%clk 0:00:33.7]} 62... f2 {[%clk 0:00:02.6]} 63. h5 {[%clk 0:00:33.3]} 63...
Rh8 {[%clk 0:00:02.6]} 64. h6 {[%clk 0:00:33]} 64... f1=Q {[%clk 0:00:02.7]} 65.
Rxf1 {[%clk 0:00:32.6]} 65... Kxf1 {[%clk 0:00:03.6]} 66. Ke3 {[%clk 0:00:23.7]}
66... Kg2 {[%clk 0:00:03.8]} 67. Kf4 {[%clk 0:00:24.6]} 67... Kh3 {[%clk
0:00:04.4]} 68. Kf5 {[%clk 0:00:20.3]} 68... Kh4 {[%clk 0:00:04.9]} 69. Kg6
{[%clk 0:00:20.6]} 69... Rg8+ {[%clk 0:00:02.7]} 70. Kf7 {[%clk 0:00:19.8]}
70... Rxg5 {[%clk 0:00:02.1]} 71. h7 {[%clk 0:00:20.2]} 71... Rh5 {[%clk
0:00:02.8]} 72. Kg7 {[%clk 0:00:19.8]} 72... Rg5+ {[%clk 0:00:03.4]} 73. Kf7
{[%clk 0:00:20]} 73... Rh5 {[%clk 0:00:03.7]} 74. Kg7 {[%clk 0:00:20.4]} 74...
Rg5+ {[%clk 0:00:04.3]} 75. Kf7 {[%clk 0:00:20.7]} 1/2-1/2

[Event "Late-Titled-Tuesday-Blitz-November-28-2023"]
[Site "Chess.com"]
[Date "2023.11.28"]
[Round "4"]
[White "ameetghasi100"]
[Black "ChessSwole"]
[Result "1-0"]
[WhiteElo "2821"]
[BlackElo "2678"]
[TimeControl "180+1"]
[EndTime "14:38:30 PST"]
[Termination "ameetghasi100 won by resignation"]

1. d4 {[%clk 0:03:00.9]} 1... d5 {[%clk 0:02:59.2]} 2. Nf3 {[%clk 0:03:00.6]}
2... Nf6 {[%clk 0:02:59.1]} 3. Bg5 {[%clk 0:02:59.3]} 3... Ne4 {[%clk
0:02:57.6]} 4. Bf4 {[%clk 0:02:59.6]} 4... c5 {[%clk 0:02:57.2]} 5. e3 {[%clk
0:03:00]} 5... Nc6 {[%clk 0:02:56.9]} 6. c3 {[%clk 0:03:00.1]} 6... Qb6 {[%clk
0:02:56.1]} 7. Qc1 {[%clk 0:02:58]} 7... Bf5 {[%clk 0:02:54]} 8. Nbd2 {[%clk
0:02:57.9]} 8... e6 {[%clk 0:02:53.2]} 9. Be2 {[%clk 0:02:57.3]} 9... Be7 {[%clk
0:02:51.7]} 10. O-O {[%clk 0:02:53.8]} 10... Rc8 {[%clk 0:02:50.8]} 11. a4
{[%clk 0:02:13.5]} 11... O-O {[%clk 0:02:45.6]} 12. dxc5 {[%clk 0:01:58.7]}
12... Bxc5 {[%clk 0:02:42.3]} 13. Nh4 {[%clk 0:01:43.3]} 13... Nxd2 {[%clk
0:02:40.3]} 14. Qxd2 {[%clk 0:01:42.9]} 14... Be4 {[%clk 0:02:38.8]} 15. a5
{[%clk 0:01:28]} 15... Qd8 {[%clk 0:02:26.9]} 16. Nf3 {[%clk 0:01:26]} 16... Be7
{[%clk 0:02:13.7]} 17. a6 {[%clk 0:01:23.2]} 17... b6 {[%clk 0:02:12.4]} 18. Nd4
{[%clk 0:01:21.5]} 18... Na5 {[%clk 0:02:08.4]} 19. Bb5 {[%clk 0:01:13.9]} 19...
Bf6 {[%clk 0:02:03.5]} 20. Bg3 {[%clk 0:00:51]} 20... Bxd4 {[%clk 0:01:59.4]}
21. exd4 {[%clk 0:00:51.2]} 21... Nb3 {[%clk 0:01:59]} 22. Qe3 {[%clk
0:00:51.5]} 22... Nxa1 {[%clk 0:01:59]} 23. Rxa1 {[%clk 0:00:52.4]} 23... h6
{[%clk 0:01:43.7]} 24. Re1 {[%clk 0:00:44.8]} 24... Qf6 {[%clk 0:01:33.6]} 25.
Qe2 {[%clk 0:00:36.9]} 25... Rfd8 {[%clk 0:01:28.8]} 26. f3 {[%clk 0:00:35.7]}
26... Bf5 {[%clk 0:01:28.2]} 27. Be5 {[%clk 0:00:35.6]} 27... Qg6 {[%clk
0:01:27]} 28. Rc1 {[%clk 0:00:29.7]} 28... h5 {[%clk 0:01:19.4]} 29. Kh1 {[%clk
0:00:26.7]} 29... h4 {[%clk 0:01:13.5]} 30. Bf4 {[%clk 0:00:25.9]} 30... Qh5
{[%clk 0:00:55.6]} 31. Re1 {[%clk 0:00:23.6]} 31... f6 {[%clk 0:00:47.9]} 32.
Kg1 {[%clk 0:00:18.8]} 32... g5 {[%clk 0:00:47.5]} 33. Bc1 {[%clk 0:00:18.6]}
33... Qf7 {[%clk 0:00:48]} 34. Qf2 {[%clk 0:00:15.5]} 34... Rc7 {[%clk
0:00:45.8]} 35. f4 {[%clk 0:00:15.4]} 35... Qg6 {[%clk 0:00:42.9]} 36. Qe3
{[%clk 0:00:09.6]} 36... Be4 {[%clk 0:00:41.3]} 37. fxg5 {[%clk 0:00:09.2]}
37... fxg5 {[%clk 0:00:42.2]} 38. Qxg5 {[%clk 0:00:07.4]} 38... Qxg5 {[%clk
0:00:21.1]} 39. Bxg5 {[%clk 0:00:08.3]} 39... Rf8 {[%clk 0:00:20.6]} 40. Bxh4
{[%clk 0:00:07.7]} 40... Rg7 {[%clk 0:00:20.9]} 41. Bg3 {[%clk 0:00:08.2]} 41...
Rg5 {[%clk 0:00:20.6]} 42. Re3 {[%clk 0:00:07.2]} 42... Kf7 {[%clk 0:00:19.8]}
43. h3 {[%clk 0:00:06.5]} 43... Rfg8 {[%clk 0:00:19.9]} 44. Kh2 {[%clk
0:00:07.1]} 44... Ke7 {[%clk 0:00:20.2]} 45. Be2 {[%clk 0:00:07.6]} 45... Kd7
{[%clk 0:00:19.6]} 46. Bg4 {[%clk 0:00:07.5]} 46... Bf5 {[%clk 0:00:19.2]} 47.
Be2 {[%clk 0:00:06.9]} 47... Be4 {[%clk 0:00:19.4]} 48. Bf1 {[%clk 0:00:07.3]}
48... R5g6 {[%clk 0:00:18.9]} 49. Bb5+ {[%clk 0:00:07.6]} 49... Ke7 {[%clk
0:00:18.9]} 50. Be2 {[%clk 0:00:08]} 50... Bf5 {[%clk 0:00:18.5]} 51. Bh5 {[%clk
0:00:06.3]} 51... R6g7 {[%clk 0:00:18.2]} 52. Bh4+ {[%clk 0:00:06.6]} 52... Kd6
{[%clk 0:00:17.8]} 53. Bf3 {[%clk 0:00:07.1]} 53... Be4 {[%clk 0:00:17.2]} 54.
Bg4 {[%clk 0:00:05.2]} 54... Bf5 {[%clk 0:00:16.7]} 55. Bg3+ {[%clk 0:00:05.3]}
55... Kd7 {[%clk 0:00:16.7]} 56. Be5 {[%clk 0:00:05.8]} 56... Rxg4 {[%clk
0:00:15.9]} 57. hxg4 {[%clk 0:00:06]} 57... Rxg4 {[%clk 0:00:16.8]} 58. Rh3
{[%clk 0:00:06]} 58... Kc6 {[%clk 0:00:15.6]} 59. Rh6 {[%clk 0:00:05.4]} 59...
Kb5 {[%clk 0:00:15.4]} 60. Rh8 {[%clk 0:00:05.2]} 60... Kxa6 {[%clk 0:00:15]}
61. Rh3 {[%clk 0:00:05.7]} 61... Be4 {[%clk 0:00:14.8]} 62. Rg3 {[%clk 0:00:06]}
62... Rxg3 {[%clk 0:00:15.3]} 63. Kxg3 {[%clk 0:00:06.9]} 63... Kb5 {[%clk
0:00:15.2]} 64. Kf2 {[%clk 0:00:07.2]} 64... Kc4 {[%clk 0:00:15.8]} 65. g4
{[%clk 0:00:05.5]} 65... Kb3 {[%clk 0:00:16.2]} 66. Ke3 {[%clk 0:00:05.5]} 66...
Kxb2 {[%clk 0:00:16.4]} 67. c4 {[%clk 0:00:05.6]} 67... a5 {[%clk 0:00:15.7]}
68. c5 {[%clk 0:00:05.9]} 68... bxc5 {[%clk 0:00:14.4]} 69. dxc5+ {[%clk
0:00:06.8]} 69... Kb3 {[%clk 0:00:14]} 70. c6 {[%clk 0:00:07.2]} 70... d4+
{[%clk 0:00:10.5]} 71. Kxe4 {[%clk 0:00:07.5]} 71... d3 {[%clk 0:00:10.9]} 72.
Kxd3 {[%clk 0:00:07.8]} 1-0